bitfinex-derivatives/quotes_SOLF0:USTF0_20240911
["timestamp","ask_amount","ask_price","bid_price","bid_amount"]
[1726028775223,11.7874,132.53,132.43,3.75868055]
[1726028775423,11.7874,132.53,132.46,10.44]
[1726028776127,16.31,132.52,132.42,3.80747123]
[1726028776330,16.31,132.52,132.41,17.6971]
[1726028776331,18.9758,132.52,132.41,17.6971]
[1726028776829,2.6658,132.52,132.43,16.31]
[1726028777127,2.6658,132.52,132.44,7.55330656]
[1726028777430,2.6658,132.52,132.44,3.77840656]
[1726028777626,2.6658,132.52,132.45,3.7745]
[1726028777832,2.6658,132.52,132.46,3.83691336]
[1726028778123,2.6658,132.52,132.43,16.31]
[1726028778324,2.6658,132.52,132.46,3.7745]
[1726028778523,1.3474,132.53,132.45,16.31]
[1726028778926,1.3474,132.53,132.48,3.7739]
[1726028779623,19.0346,132.57,132.49,3.7736]
[1726028779825,20.3219,132.57,132.47,16.31]
[1726028780230,20.3219,132.57,132.47,20.084]
[1726028781427,20.3219,132.57,132.48,3.7739]
[1726028781935,20.3219,132.57,132.47,20.0841]
[1726028782229,20.3219,132.57,132.47,16.31]
[1726028783732,20.3219,132.57,132.47,20.0839]
[1726028784234,20.3219,132.57,132.47,16.31]
[1726028784824,20.3219,132.57,132.47,20.084]
[1726028785130,20.3219,132.57,132.47,16.31]
[1726028785331,20.3219,132.57,132.47,20.0841]
[1726028787136,20.3219,132.57,132.47,16.31]
[1726028787732,20.3219,132.57,132.48,3.7738]
[1726028788138,20.3219,132.57,132.47,16.31]
[1726028788338,16.31,132.55,132.47,16.31]
[1726028788635,16.31,132.55,132.45,16.31]
[1726028788839,16.31,132.55,132.46,3.7744]
[1726028789040,16.31,132.55,132.45,20.13077144]
[1726028789436,16.31,132.55,132.47,3.774]
[1726028790745,16.31,132.55,132.46,3.7744]
[1726028790945,16.31,132.55,132.45,20.13077144]
[1726028793047,16.31,132.55,132.46,3.7744]
[1726028793240,16.31,132.55,132.45,20.13077144]
[1726028793645,20.3219,132.57,132.47,16.31]
[1726028794442,20.3219,132.57,132.48,3.7739]
[1726028794849,16.31,132.53,132.35,7.5553]
[1726028795044,4.0204,132.52,132.4,1.3958]
[1726028795246,20.3304,132.52,132.41,16.31]
[1726028795442,4.0204,132.52,132.45,16.31]
[1726028795647,1.3018,132.52,132.45,16.31]
[1726028796053,3.7736,132.5,132.45,16.31]
[1726028796546,16.31,132.5,132.41,1.3668]
[1726028797154,3.775,132.45,132.4,19.99309805]
[1726028798237,3.775,132.45,132.42,10.44]
[1726028799844,2.6571,132.51,132.44,10.44]
[1726028800043,2.6571,132.51,132.42,2.7849]
[1726028800251,2.6571,132.51,132.43,16.3]
[1726028800952,3.7739,132.48,132.43,16.3]
[1726028801346,3.7737,132.49,132.43,16.3]
[1726028803551,2.6747,132.56,132.47,16.3]
[1726028803853,4.0692,132.56,132.47,16.3]
[1726028804446,3.7731,132.51,132.48,3.83935985]
[1726028804642,4.0692,132.56,132.41,16.3]
[1726028804643,16.3,132.53,132.41,16.3]
[1726028804844,16.3,132.53,132.41,19.9834755]
[1726028805040,3.7746,132.46,132.41,19.9834755]
[1726028805241,16.3,132.51,132.41,19.9834755]
[1726028805441,4.1053,132.5,132.41,19.9834755]
[1726028805647,3.7753,132.44,132.41,19.9834755]
[1726028806051,4.1053,132.5,132.41,19.9834755]
[1726028806648,2.7409,132.5,132.43,16.3]
[1726028806846,1.4033,132.5,132.43,16.3]
[1726028807044,16.3,132.53,132.43,16.3]
[1726028807847,3.7744,132.47,132.43,16.3]
[1726028808051,3.7744,132.47,132.42,2.7285]
[1726028808952,1.3516,132.54,132.42,2.7285]
[1726028809242,1.3516,132.54,132.44,16.3]
[1726028810253,3.774,132.48,132.44,16.3]
[1726028810449,16.3,132.53,132.42,2.7285]
[1726028811051,3.7745,132.47,132.42,2.7285]
[1726028811555,3.7746,132.46,132.42,2.7285]
[1726028812459,3.7744,132.47,132.42,2.7285]
[1726028812661,3.7744,132.47,132.43,16.3]
[1726028812865,3.7744,132.47,132.42,2.7285]
[1726028813052,3.7744,132.47,132.42,19.0285]
[1726028813453,3.7741,132.48,132.42,19.0285]
[1726028815063,16.3,132.51,132.42,2.7285]
[1726028815363,16.3,132.51,132.41,3.6834755]
[1726028815552,3.7755,132.43,132.39,16.3]
[1726028815955,3.7755,132.43,132.4,3.72820396]
[1726028817364,3.7752,132.44,132.39,16.3]
[1726028817562,3.7752,132.44,132.4,2.6299]
[1726028817868,3.7752,132.44,132.41,3.81428509]
[1726028821265,17.6294,132.49,132.41,3.81428509]
[1726028821569,17.6294,132.49,132.4,2.6299]
[1726028821965,1.3294,132.49,132.4,6.3811297]
[1726028822273,1.3294,132.49,132.41,16.3]
[1726028822573,1.3294,132.49,132.41,20.10069231]
[1726028822771,3.7743,132.47,132.41,20.10069231]
[1726028823271,3.7745,132.46,132.41,20.10069231]
[1726028823768,240.3,132.55,132.43,16.3]
[1726028823972,2.7634,132.54,132.43,16.3]
[1726028825067,3.7738,132.49,132.43,16.3]
[1726028828070,3.7738,132.49,132.41,3.80069231]
[1726028828071,2.7634,132.54,132.45,16.3]
[1726028828371,2.7634,132.54,132.47,16.3]
[1726028828567,3.7732,132.51,132.47,16.3]
[1726028828772,2.7634,132.54,132.47,16.3]
[1726028829172,3.7735,132.5,132.47,3.81162332]
[1726028829373,2.7634,132.54,132.46,2.7142]
[1726028829872,2.7634,132.54,132.46,6.53639229]
[1726028830072,2.7634,132.54,132.33,3.69234496]
[1726028830073,16.3,132.53,132.41,2.7646]
[1726028830277,16.3,132.53,132.42,16.3]
[1726028830579,16.3,132.53,132.42,20.05386938]
[1726028831470,3.7738,132.49,132.42,20.05386938]
[1726028833779,3.7741,132.48,132.42,20.05386938]
[1726028834776,3.7742,132.47,132.42,20.05386938]
[1726028835879,3.774,132.48,132.42,20.05386938]
[1726028836578,1.4007,132.52,132.42,20.05386938]
[1726028837477,3.7736,132.49,132.42,20.05386938]
[1726028837882,1.4007,132.52,132.42,20.05386938]
[1726028838081,3.7736,132.49,132.42,20.05386938]
[1726028838681,3.774,132.48,132.42,20.05386938]
[1726028838980,1.4007,132.52,132.42,20.05386938]
[1726028839181,3.7744,132.47,132.42,20.05386938]
[1726028842786,1.4007,132.52,132.42,20.05386938]
[1726028842984,1.4007,132.52,132.44,16.3]
[1726028843586,1.4007,132.52,132.45,3.77982482]
[1726028844081,3.7742,132.47,132.42,16.3]
[1726028844277,1.4007,132.52,132.42,20.13154636]
[1726028845289,3.7747,132.46,132.42,20.13154636]
[1726028845883,3.7748,132.45,132.42,20.13154636]
[1726028849485,3.7748,132.45,132.42,3.83154636]
[1726028849694,3.7748,132.45,132.41,1.3479]
[1726028850083,3.7748,132.45,132.42,10.44]
[1726028852102,3.7746,132.46,132.41,1.3479]
[1726028852303,3.7746,132.46,132.44,10.44]
[1726028854509,3.7748,132.45,132.44,10.44]
[1726028854812,3.7748,132.45,132.42,10.44]
[1726028855609,3.7746,132.46,132.42,14.17480329]
[1726028857009,1.3304,132.48,132.45,10.44]
[1726028857205,1.3886,132.49,132.45,10.44]
[1726028858708,11.8407,132.52,132.45,10.44]
[1726028858709,1.4007,132.52,132.45,10.44]
[1726028858909,1.4007,132.52,132.46,10.44]
[1726028859114,11.8407,132.52,132.46,10.44]
[1726028860110,11.8407,132.52,132.47,3.75132115]
[1726028865025,11.8407,132.52,132.46,10.44]
[1726028865318,11.8407,132.52,132.46,14.26030955]
[1726028872627,3.7736,132.5,132.46,14.26030955]
[1726028872824,11.8407,132.52,132.46,14.26030955]
[1726028873325,3.7738,132.49,132.46,3.82030955]
[1726028873530,10.44,132.51,132.35,1.3913]
[1726028873731,10.44,132.51,132.44,10.44]
[1726028873923,3.7741,132.48,132.45,3.82832013]
[1726028874324,3.7741,132.48,132.44,10.44]
[1726028874730,3.7741,132.48,132.45,10.44]
[1726028875528,3.7741,132.48,132.46,3.75811728]
[1726028877430,3.7738,132.49,132.45,10.44]
[1726028877925,3.7738,132.49,132.45,14.23614949]
[1726028878930,3.7738,132.49,132.47,10.44]
[1726028879729,3.7738,132.49,132.47,14.27276708]
[1726028881636,3.7735,132.5,132.47,14.27276708]
[1726028882834,2.7259,132.54,132.48,10.44]
[1726028883033,2.7259,132.54,132.5,10.44]
[1726028883436,2.7259,132.54,132.5,14.15158927]
[1726028883632,1.4159,132.54,132.51,10.44]
[1726028883835,10.44,132.57,132.51,10.44]
[1726028884343,10.44,132.57,132.52,3.78595696]
[1726028884632,2.6956,132.58,132.52,3.78595696]
[1726028884836,2.6956,132.58,132.51,10.44]
[1726028884837,2.6956,132.58,132.53,10.44]
[1726028885031,235.23632273,132.68,132.56,10.44]
[1726028885338,10.44,132.62,132.56,10.44]
[1726028885534,10.44,132.62,132.56,14.13133846]
[1726028888136,2.6956,132.63,132.57,10.44]
[1726028888740,2.6956,132.63,132.58,10.44]
[1726028888937,1.3373,132.63,132.6,10.44]
[1726028889641,1.3373,132.63,132.6,14.23450814]
[1726028890448,11.7773,132.63,132.46,3.73981593]
[1726028890646,1.3801,132.62,132.56,10.44]
[1726028890831,1.3801,132.62,132.56,14.28203379]
[1726028891141,10.44,132.61,132.45,1.3713]
[1726028891338,11.8418,132.61,132.55,10.44]
[1726028891540,3.7715,132.57,132.55,14.26242003]
[1726028891835,11.8418,132.61,132.55,14.26242003]
[1726028892036,3.7713,132.58,132.55,14.26242003]
[1726028893143,3.7708,132.59,132.57,10.44]
[1726028893332,3.7708,132.59,132.57,14.26676927]
[1726028894245,3.7708,132.59,132.57,3.82676927]
[1726028894448,3.7708,132.59,132.56,16.3]
[1726028894946,3.7708,132.59,132.57,3.69219162]
[1726028896349,1.3801,132.62,132.56,16.3]
[1726028896746,1.3801,132.62,132.56,20.11026027]
[1726028904838,1.3801,132.62,132.58,16.3]
[1726028905148,1.3373,132.63,132.58,16.3]
[1726028905338,1.3373,132.63,132.59,16.3]
[1726028905538,1.3734,132.65,132.59,16.3]
[1726028906546,1.3734,132.65,132.59,20.10167169]
[1726028910751,1.395,132.66,132.59,20.10167169]
[1726028910957,1.395,132.66,132.61,16.3]
[1726028914050,1.395,132.66,132.59,3.80167169]
[1726028914247,1.395,132.66,132.63,10.42]
[1726028915054,1.4109,132.69,132.63,14.21110105]
[1726028915357,1.4067,132.68,132.63,14.21110105]
[1726028915759,1.4067,132.68,132.65,10.42]
[1726028919354,3.7688,132.66,132.65,10.42]
[1726028920457,3.7685,132.67,132.65,10.42]
[1726028920656,3.7685,132.67,132.66,10.42]
[1726028921854,3.7685,132.67,132.66,14.26632785]
[1726028922452,1.4146,132.71,132.66,14.26632785]
[1726028925561,2.6459,132.73,132.66,14.26632785]
[1726028925870,2.6459,132.73,132.68,10.42]
[1726028926265,2.6459,132.73,132.7,10.42]
[1726028928666,2.6459,132.73,132.71,10.42]
[1726028928667,1.3369,132.73,132.71,10.42]
[1726028928871,224.0,132.81,132.72,10.42]
[1726028928872,1.3213,132.78,132.72,10.42]
[1726028929059,1.3213,132.78,132.54,256.14075101]
[1726028929060,1.4154,132.78,132.74,10.42]
[1726028929571,10.42,132.81,132.73,3.79372738]
[1726028929768,10.42,132.81,132.54,252.3457]
[1726028929769,10.42,132.81,132.74,10.42]
[1726028929961,1.2769,132.8,132.74,10.42]
[1726028930456,2.6923,132.8,132.74,10.42]
[1726028930867,2.6923,132.8,132.75,10.42]
[1726028932864,13.1123,132.8,132.62,7.5399]
[1726028933064,10.42,132.77,132.63,1.38488141]
[1726028933271,10.42,132.77,132.7,10.42]
[1726028934465,10.42,132.77,132.71,10.42]
[1726028935769,10.42,132.78,132.71,10.42]
[1726028935965,10.42,132.78,132.7,3.7677]
[1726028935966,1.3065,132.79,132.73,10.42]
[1726028936168,1.3065,132.79,132.75,10.42]
[1726028937374,2.6923,132.8,132.77,10.42]
[1726028939577,2.6923,132.8,132.73,7.55664573]
[1726028939872,2.6923,132.8,132.75,10.42]
[1726028940471,2.6923,132.8,132.73,3.67286973]
[1726028940671,2.6923,132.8,132.75,10.42]
[1726028942082,1.3939,132.82,132.75,10.42]
[1726028942281,1.3253,132.8,132.75,10.42]
[1726028942583,1.3253,132.8,132.77,10.42]
[1726028943277,1.3253,132.8,132.78,10.42]
[1726028943471,1.3939,132.82,132.79,10.42]
[1726028943670,1.3253,132.84,132.81,10.42]
[1726028944076,1.3506,132.87,132.83,10.42]
[1726028944277,2.763,132.91,132.85,10.42]
[1726028944480,1.10600407,132.9,132.85,10.42]
[1726028944985,1.10600407,132.9,132.81,3.83560611]
[1726028944986,1.10600407,132.9,132.84,10.42]
[1726028945876,10.42,132.89,132.84,10.42]
[1726028946075,4.1136,132.91,132.81,16.26]
[1726028946375,1.10559621,132.9,132.81,16.26]
[1726028946773,4.1136,132.91,132.81,16.26]
[1726028946971,1.10558334,132.9,132.81,16.26]
[1726028947178,17.36558334,132.9,132.79,16.26]
[1726028947385,16.26,132.9,132.79,16.26]
[1726028947780,4.1136,132.91,132.81,16.26]
[1726028949074,1.10541455,132.9,132.81,16.26]
[1726028950279,4.1136,132.91,132.81,16.26]
[1726028950481,1.10536017,132.9,132.81,16.26]
[1726028950681,4.1136,132.91,132.81,16.26]
[1726028953678,16.26,132.89,132.79,2.6215]
[1726028953983,16.26,132.89,132.79,1.2781]
[1726028954188,16.26,132.89,132.78,16.26]
[1726028957691,3.7645,132.82,132.78,16.26]
[1726028957992,16.26,132.89,132.78,16.26]
[1726028958598,16.26,132.88,132.78,16.26]
[1726028958798,3.7651,132.79,132.78,16.26]
[1726028964698,3.7657,132.77,132.76,20.04474052]
[1726028964896,3.7657,132.77,132.76,16.26]
[1726028965097,4.0101,132.84,132.76,16.26]
[1726028965292,3.7656,132.78,132.76,16.26]
[1726028965701,4.0101,132.84,132.76,16.26]
[1726028966000,4.0101,132.84,132.76,20.11402444]
[1726028966197,14.4301,132.84,132.77,10.42]
[1726028967713,3.7654,132.78,132.77,10.42]
[1726028969403,14.4301,132.84,132.74,2.6215]
[1726028969604,10.42,132.81,132.62,227.0]
[1726028969801,10.42,132.81,132.59,3.67231638]
[1726028969802,10.42,132.81,132.73,10.42]
[1726028970009,3.7667,132.74,132.73,10.42]
[1726028970509,10.42,132.81,132.73,10.42]
[1726028970713,10.42,132.82,132.75,10.42]
[1726028971016,7.5281,132.83,132.69,1.3298]
[1726028971017,3.766,132.76,132.69,1.3298]
[1726028971215,3.766,132.76,132.75,10.42]
[1726028971609,7.5281,132.83,132.75,10.42]
[1726028971910,3.7657,132.77,132.69,1.3298]
[1726028972103,3.7657,132.77,132.69,5.15242075]
[1726028972304,3.7657,132.77,132.69,1.3298]
[1726028972912,3.7657,132.77,132.69,5.11210728]
[1726028973219,3.7657,132.77,132.69,1.3298]
[1726028973712,4.0101,132.84,132.76,10.42]
[1726028974012,4.0101,132.84,132.8,10.42]
[1726028977516,2.7282,132.84,132.8,10.42]
[1726028977722,1.4062,132.84,132.81,10.42]
[1726028979615,11.7947,132.87,132.81,10.42]
[1726028979825,13.2001,132.87,132.77,3.82807202]
[1726028980023,13.2001,132.87,132.81,10.42]
[1726028981112,10.42,132.86,132.78,3.78766194]
[1726028981311,10.42,132.86,132.8,10.42]
[1726028981821,10.42,132.86,132.69,1.3298]
[1726028982123,10.42,132.86,132.79,10.42]
[1726028982518,2.7801,132.87,132.78,10.42]
[1726028982519,10.42,132.85,132.78,10.42]
[1726028983426,10.42,132.85,132.79,10.42]
[1726028985325,13.2001,132.87,132.8,10.42]
[1726028986325,10.42,132.85,132.77,2.7148]
[1726028986626,10.42,132.85,132.79,10.42]
[1726028987528,10.42,132.84,132.77,11.7952]
[1726028989125,10.42,132.85,132.79,10.42]
[1726028989521,2.7801,132.87,132.81,10.42]
[1726028989730,1.10520144,132.86,132.81,10.42]
[1726028989928,13.2001,132.87,132.81,10.42]
[1726028990324,13.2001,132.87,132.8,10.42]
[1726028992232,10.42,132.85,132.8,10.42]
[1726028993731,10.42,132.85,132.78,10.42]
[1726028993931,10.42,132.84,132.78,10.42]
[1726028994126,3.7651,132.79,132.78,10.42]
[1726028994331,10.42,132.84,132.78,10.42]
[1726028994829,3.7651,132.79,132.78,10.42]
[1726029000333,1.3082,132.85,132.78,10.42]
[1726029000524,1.3082,132.85,132.81,10.42]
[1726029001229,11.7282,132.85,132.79,10.42]
[1726029001528,11.7282,132.85,132.78,10.42]
[1726029001733,10.42,132.83,132.76,10.42]
[1726029002035,1.371,132.82,132.76,10.42]
[1726029002521,11.791,132.82,132.75,10.42]
[1726029002727,13.0684,132.82,132.75,10.42]
[1726029003234,13.0684,132.82,132.72,10.42]
[1726029003235,10.42,132.79,132.72,10.42]
[1726029003437,10.42,132.79,132.73,10.42]
[1726029004739,10.42,132.79,132.72,10.42]
[1726029004941,6.47467693,132.82,132.69,10.42]
[1726029004942,10.42,132.76,132.69,10.42]
[1726029005139,13.0877,132.75,132.65,2.6283]
[1726029005338,13.0877,132.75,132.68,10.42]
[1726029006038,13.0877,132.75,132.65,2.6283]
[1726029006337,2.6677,132.75,132.67,16.3]
[1726029006537,18.9677,132.75,132.65,18.9283]
[1726029006738,22.7609464,132.75,132.65,16.3]
[1726029007538,1.10479237,132.74,132.65,16.3]
[1726029007739,2.6677,132.75,132.63,3.71694417]
[1726029007950,1.2816,132.75,132.7,3.7675]
[1726029008246,1.2816,132.75,132.69,20.0902314]
[1726029008434,1.2816,132.75,132.69,16.3]
[1726029009631,1.3316,132.78,132.71,16.3]
[1726029009833,1.35,132.8,132.73,16.3]
[1726029010739,1.35,132.8,132.73,20.0668]
[1726029011840,1.35,132.8,132.75,16.3]
[1726029013844,1.35,132.8,132.73,18.966]
[1726029014940,1.35,132.8,132.73,22.7328]
[1726029016342,1.35,132.8,132.73,18.966]
[1726029016742,1.35,132.8,132.71,16.3]
[1726029018244,1.35,132.8,132.68,3.70252389]
[1726029018245,16.3,132.79,132.69,16.3]
[1726029019354,1.10417027,132.78,132.69,16.3]
[1726029019543,16.3,132.79,132.69,16.3]
[1726029020649,1.10419126,132.78,132.69,16.3]
[1726029020849,16.3,132.79,132.69,16.3]
[1726029021045,1.3774,132.77,132.69,16.3]
[1726029021546,17.6774,132.77,132.67,16.3]
[1726029021750,16.3,132.75,132.66,3.74660838]
[1726029022053,16.3,132.75,132.65,20.0689]
[1726029022054,1.3263,132.74,132.65,20.0689]
[1726029022253,2.6146,132.74,132.65,20.0689]
[1726029022453,2.6146,132.74,132.66,3.7986132]
[1726029022656,2.6146,132.74,132.65,20.0689]
[1726029023049,2.6146,132.74,132.65,23.87015113]
[1726029023354,2.6146,132.74,132.66,3.7688]
[1726029024451,2.6146,132.74,132.65,23.87025113]
[1726029025159,2.6146,132.74,132.66,3.7688]
[1726029025850,2.6146,132.74,132.65,23.87015113]
[1726029026054,16.3,132.73,132.63,16.3]
[1726029026256,2.6146,132.74,132.65,16.3]
[1726029026653,2.6146,132.74,132.65,20.11237313]
[1726029026853,2.6146,132.74,132.65,16.3]
[1726029031155,1.3263,132.74,132.67,16.3]
[1726029031360,3.77750979,132.76,132.67,16.3]
[1726029032259,17.6774,132.77,132.67,16.3]
[1726029032456,1.10382079,132.76,132.67,16.3]
[1726029032655,21.4304173,132.77,132.67,16.3]
[1726029032854,1.103806,132.76,132.67,16.3]
[1726029034053,10.43,132.73,132.67,10.43]
[1726029035855,10.43,132.72,132.64,3.77506343]
[1726029036058,10.43,132.72,132.66,10.43]
[1726029036858,10.43,132.73,132.66,10.43]
[1726029037257,10.43,132.73,132.65,3.78505571]
[1726029037258,10.43,132.73,132.67,10.43]
[1726029039367,10.43,132.74,132.69,10.43]
[1726029039575,5.1304173,132.77,132.7,10.43]
[1726029039865,1.3774,132.77,132.73,10.43]
[1726029040369,13.0656,132.78,132.73,10.43]
[1726029040765,1.3117,132.78,132.74,10.43]
[1726029041361,1.3117,132.78,132.68,1.327]
[1726029041561,1.3117,132.78,132.72,10.43]
[1726029041769,10.43,132.8,132.74,10.43]
[1726029041964,10.43,132.8,132.75,10.43]
[1726029042168,17.618,132.83,132.73,16.28]
[1726029042477,1.10379882,132.82,132.73,16.28]
[1726029044365,1.10355563,132.81,132.73,16.28]
[1726029044570,21.46333445,132.83,132.73,16.28]
[1726029044972,1.10357131,132.82,132.73,16.28]
[1726029045468,1.10357131,132.82,132.75,16.28]
[1726029045671,1.338,132.83,132.75,16.28]
[1726029046474,5.05795353,132.83,132.75,16.28]
[1726029047277,21.33795353,132.83,132.73,18.9926]
[1726029047482,16.28,132.81,132.73,2.7126]
[1726029047670,16.28,132.81,132.71,16.28]
[1726029048670,16.28,132.79,132.69,16.28]
[1726029049083,17.6803,132.79,132.69,16.28]
[1726029050374,16.28,132.77,132.67,2.7858]
[1726029050586,5.10776391,132.76,132.67,2.7858]
[1726029053475,1.2937,132.76,132.67,2.7858]
[1726029058185,5.03927105,132.76,132.67,2.7858]
[1726029058588,1.2937,132.76,132.67,2.7858]
[1726029059088,5.09995706,132.76,132.67,2.7858]
[1726029059288,1.2937,132.76,132.67,2.7858]
[1726029060681,3.71702095,132.75,132.67,2.7858]
[1726029062883,1.2937,132.76,132.67,2.7858]
[1726029063084,3.85195235,132.75,132.67,2.7858]
[1726029063392,3.80869827,132.75,132.67,2.7858]
[1726029063890,1.2937,132.76,132.67,6.5541]
[1726029064095,10.43,132.75,132.69,10.43]
[1726029067493,1.2937,132.76,132.69,10.43]
[1726029067689,11.7237,132.76,132.69,10.43]
[1726029067887,1.2937,132.76,132.69,10.43]
[1726029068286,11.7237,132.76,132.69,10.43]
[1726029070692,10.43,132.74,132.67,6.5542]
[1726029070896,10.43,132.74,132.67,13.2158]
[1726029071094,10.43,132.73,132.67,2.7858]
[1726029071293,10.43,132.73,132.65,3.78505571]
[1726029071294,10.43,132.72,132.65,3.78505571]
[1726029071596,10.43,132.72,132.65,10.43]
[1726029071790,4.98594391,132.76,132.68,10.43]
[1726029071991,10.43,132.75,132.69,10.43]
[1726029074492,10.43,132.74,132.68,10.43]
[1726029076897,1.2937,132.76,132.66,11.7073]
[1726029076898,10.43,132.73,132.66,11.7073]
[1726029078494,10.43,132.71,132.65,11.8157]
[1726029079108,10.43,132.7,132.65,1.3857]
[1726029082305,5.04794048,132.76,132.65,11.8157]
[1726029082505,10.43,132.71,132.65,11.8157]
[1726029084400,10.43,132.7,132.64,10.43]
[1726029085204,10.43,132.69,132.63,14.17104787]
[1726029086100,10.43,132.69,132.64,10.43]
[1726029086301,10.43,132.7,132.64,10.43]
[1726029087102,10.43,132.7,132.65,10.43]
[1726029089198,10.43,132.69,132.6,1.3766]
[1726029089606,10.43,132.67,132.61,14.26840363]
[1726029091512,10.43,132.67,132.61,10.43]
[1726029092009,11.7085,132.68,132.62,10.43]
[1726029094006,1.2785,132.68,132.62,10.43]
[1726029094207,11.7085,132.68,132.62,14.1999]
[1726029094715,11.7085,132.68,132.62,10.43]
[1726029095113,1.2785,132.68,132.62,10.43]
[1726029095311,1.2785,132.68,132.62,14.1997]
[1726029095814,1.2785,132.68,132.63,10.43]
[1726029096618,10.43,132.7,132.63,10.43]
[1726029097116,10.43,132.7,132.63,14.1995]
[1726029098517,10.43,132.7,132.64,3.7694]
[1726029098712,10.43,132.7,132.63,10.43]
[1726029099415,10.43,132.7,132.63,14.1995]
[1726029099611,10.43,132.7,132.63,10.43]
[1726029099806,10.43,132.7,132.61,3.74802247]
[1726029100012,10.43,132.68,132.62,10.43]
[1726029104214,10.43,132.7,132.64,10.43]
[1726029106610,10.43,132.69,132.62,3.78855105]
[1726029106810,1.3862,132.69,132.6,10.43]
[1726029107017,1.3184,132.68,132.63,10.43]
[1726029108918,1.3862,132.69,132.63,10.43]
[1726029109224,1.3862,132.69,132.65,10.43]
[1726029110720,1.4017,132.71,132.65,10.43]
[1726029110721,11.8317,132.71,132.65,10.43]
[1726029110924,11.8317,132.71,132.62,3.7726242]
[1726029111227,11.8317,132.71,132.65,10.43]
[1726029112121,1.4017,132.71,132.66,10.43]
[1726029113620,1.3313,132.72,132.66,10.43]
[1726029113821,2.7378,132.76,132.7,10.43]
[1726029114021,4.1248,132.76,132.72,10.43]
[1726029115230,1.387,132.76,132.72,10.43]
[1726029117632,3.7668,132.73,132.72,10.43]
[1726029119232,3.7673,132.72,132.71,10.43]
[1726029120725,1.387,132.76,132.69,3.82121868]
[1726029120934,16.87774819,132.76,132.69,10.43]
[1726029121235,13.1285,132.76,132.69,14.2222044]
[1726029121530,10.43,132.73,132.6,1.4068]
[1726029121834,10.43,132.72,132.66,10.43]
[1726029122033,3.7687,132.67,132.66,10.43]
[1726029123833,1.3858,132.75,132.66,10.43]
[1726029124035,1.3858,132.75,132.7,10.43]
[1726029124740,13.1285,132.76,132.72,10.43]
[1726029124741,2.6985,132.76,132.72,10.43]
[1726029124928,2.6985,132.76,132.74,10.43]
[1726029125327,1.387,132.76,132.72,10.43]
[1726029125528,1.387,132.76,132.66,2.7543]
[1726029125529,1.387,132.76,132.74,10.43]
[1726029125934,10.43,132.79,132.74,10.43]
[1726029126237,1.3961,132.8,132.71,16.29]
[1726029126830,1.10494591,132.79,132.71,16.29]
[1726029127337,1.3961,132.8,132.71,16.29]
[1726029127841,17.39490696,132.79,132.69,16.29]
[1726029128042,16.29,132.79,132.69,16.29]
[1726029128245,3.7675,132.71,132.69,16.29]